Cogmind - Beta 13 @@@ ROGUE MODE // 2024.07.06 @ 22:45:35 Player: Electroneer Result: Destroyed by G-34 Mercenary with Small Laser Performance ------------- Evolutions (0) 0 Regions Visited (1) 200 Robots Destroyed (24) 120 Value Destroyed (413) 413 Prototype IDs (0) 0 Alien Tech Used (0) 0 Bonus (0) 0 TOTAL SCORE: 733 Bonus ------- None Cogmind --------- Core Integrity 0/250 Matter 260/300 Energy 220/250 System Corruption 1% Temperature Cool (30) Movement Walking (400) Ox4 Location -10/Materials Parts ------- > --- POWER (1) -------- Ion Engine > --- PROPULSION (2) --- Aluminum Leg > --- UTILITY (2) ------ High-capacity Storage Unit Light Armor Plating > --- WEAPON (2) ------- Small Laser > --- INVENTORY (20) --- Ion Engine Light Nuclear Core Heat Sink Huge Storage Unit Large Matter Pod (150) Seismic Detector Light Armor Plating Light Armor Plating Peak State ------------ > --- POWER ------------ Ion Engine > --- PROPULSION ------- Aluminum Leg Aluminum Leg > --- UTILITY ---------- High-capacity Storage Unit Seismic Detector > --- WEAPON ----------- EM Pulse Gun Grenade Launcher > --- INVENTORY -------- Ion Engine Ion Engine Aluminum Leg Heat Sink Large Matter Pod Light Armor Plating Small Laser Small Laser Assault Rifle Mining Laser [Rating: 8] Favorites ----------- Power Ion Engine Engine Ion Engine Propulsion Aluminum Leg Leg Aluminum Leg Utility Seismic Detector Device Seismic Detector Storage High-capacity Storage Unit Protection Light Armor Plating Weapon Grenade Launcher Energy Gun Small Laser Ballistic Gun Assault Rifle Launcher Grenade Launcher Special Weapon Mining Laser Build | -11 -10 ------- Run | Yrd Mat Slots Evolved . | . . Power . | . . Propulsion . | . . Utility . | . . Weapon . | . . Parts Attached 23 | 7 16 Power 3 | 1 2 Engine 3 | 1 2 Core . | . . Reactor . | . . Propulsion 4 | 2 2 Treads . | . . Leg 4 | 2 2 Wheel . | . . Hover . | . . Flight . | . . Utility 7 | 2 5 Device 1 | 1 . Storage 4 | 1 3 Processor . | . . Hackware . | . . Protection 2 | . 2 Artifact . | . . Weapon 9 | 2 7 Energy Gun 6 | 2 4 Energy Cannon . | . . Ballistic Gun 1 | . 1 Ballistic Cannon . | . . Launcher 1 | . 1 Special Weapon 1 | . 1 Impact Weapon . | . . Slashing Weapon . | . . Piercing Weapon . | . . Special Melee Weapon . | . . Unidentified Prototypes . | . . Corrupted Parts 1 | . 1 System Corruption 1 | . 1 Parts Lost 12 | . 12 Power 2 | . 2 Propulsion 3 | . 3 Utility 2 | . 2 Weapon 5 | . 5 Highest Loss Streak 6 | . 6 To Critical Strikes . | . . Average Slot Usage (%) 98 | . 98 Engine 13 | . 13 Leg 27 | . 27 Device 13 | . 13 Storage 14 | . 14 Energy Gun 14 | . 14 Ballistic Gun 1 | . 1 Launcher 11 | . 11 Naked Turns . | . . Heaviest Build 51 | 13 51 Greatest Support 20 | 20 20 Greatest Overweight (x) 5 | 1 5 Average Overweight (x) 1 | . 1 Largest Inventory Capacity 25 | 8 25 Average Capacity 17 | 7 19 Most Carried 16 | 4 16 Average Carried 10 | 2 11 Final Capacity 20 | 8 20 Final Carried 8 | 4 8 Class Distribution -------------------- 100% | Mutant Dominant Class ---------------- Mutant | -10/Materials Resources | -11 -10 ----------- Run | Yrd Mat Matter Collected 651 | 338 313 Remotely . | . . Salvage Created 555 | 231 324 Parts 49 | 26 23 Haulers Intercepted 2 | . 2 Recyclers Shooed 1 | 1 . Parts Field Recycled . | . . Retrieved Matter . | . . Parts Self-Destructed . | . . Prevented . | . . Kills | -11 -10 ------- Run | Yrd Mat Combat Hostiles Destroyed 9 | . 9 Guns 7 | . 7 AOE 2 | . 2 Classes Destroyed 8 | 3 5 Worker 3 | 2 1 Builder 1 | . 1 Tunneler 7 | 6 1 Hauler 2 | . 2 Recycler 1 | 1 . Watcher 1 | . 1 Swarmer 3 | . 3 Grunt 6 | . 6 Best Kill Streak 7 | 3 7 Combat Bots Only 3 | . 3 Max Kills in Single Turn 3 | 1 3 Gunslinging . | . . Exploded 2 | . 2 Melee . | . . Uniques/NPCs Destroyed . | . . Combat | -11 -10 -------- Run | Yrd Mat Hostile Shots Fired 137 | . 137 Missed 35 | . 35 Damage Taken 1260 | . 1260 Core 260 | . 260 Absorbed by Shields . | . . Core Remaining (%) 100 | 100 . Volleys Fired 86 | 16 70 Largest 2 | 2 2 Hottest 140 | 80 140 Shots Fired 125 | 32 93 Gun 117 | 32 85 Cannon . | . . Launcher 6 | . 6 Special 2 | . 2 Kinetic 15 | . 15 Thermal 90 | 32 58 Explosive 6 | . 6 Electromagnetic 14 | . 14 Robot Hit Streak 11 | 6 11 Robot Miss Streak 6 | 2 6 Penetration Max . | . . Secondary Targets 1 | . 1 Max Gunslinging Chain 1 | . 1 Shots Hit Robots 85 | 20 65 Core Hits 35 | 10 25 Critical Kills . | . . Critical Parts Destroyed . | . . Critical Strikes . | . . Melee Attacks . | . . Impact . | . . Slashing . | . . Piercing . | . . Sneak Attacks . | . . Combat Hostiles . | . . Follow-up Attacks . | . . Damage Inflicted 1629 | 227 1402 Guns 961 | 227 734 Cannons . | . . Explosions 616 | . 616 Melee . | . . Ramming 4 | . 4 Kinetic 99 | . 99 Thermal 1061 | 227 834 Explosive 297 | . 297 Electromagnetic 168 | . 168 Impact . | . . Slashing . | . . Piercing . | . . Highest Corruption 1 | . 1 Average Corruption 1 | . 1 Corruption Purged . | . . Corruption Blocked . | . . Effects 1 | . 1 Parts Rejected 1 | . 1 Overload Shots . | . . Overflow Damage 159 | . 159 Projectiles . | . . Explosions 159 | . 159 Melee . | . . Knockbacks . | . . Impact . | . . Kinetic . | . . Secondary . | . . Self-Inflicted Damage . | . . Shots . | . . Rammed . | . . Targets Rammed 2 | . 2 Kicked 2 | . 2 Crushed . | . . Highest Temperature 179 | 144 179 Average Temperature 41 | 47 38 Received Heat Transfer 702 | . 702 Siege Activations . | . . Robots Corrupted . | . . Combat Hostiles . | . . Parts Fried 1 | . 1 Impact Corruptions . | . . Robots Melted . | . . Combat Hostiles . | . . Parts Melted 1 | . 1 Heat Transferred 1850 | 500 1350 Parts Sabotaged . | . . Parts Stolen . | . . Parts Stripped . | . . Power Chain Reactions . | . . Alert | -11 -10 ------- Run | Yrd Mat Peak Influence 260 | 45 260 Initial 29 | . 29 Average 46 | 18 50 Maximum Alert Level 1 | . 1 Low Security (%) 90 | 100 88 Level 1 9 | . 11 Level 2 . | . . Level 3 . | . . Level 4 . | . . Level 5 . | . . High Security . | . . Max Security . | . . Squads Dispatched 2 | . 2 Investigation 2 | . 2 Extermination . | . . Reinforcement . | . . Assault . | . . Garrison . | . . Intercept . | . . Searches Triggered . | . . Construction Impeded . | . . Haulers Reinforced . | . . Active Scanning Responses . | . . Cargo Convoy Interrupts . | . . Stealth | -11 -10 --------- Run | Yrd Mat Distress Signals 1 | . 1 Communications Jammed . | . . Distress Signals . | . . Times Spotted 17 | . 17 Peak Tracking Total 3 | . 3 Tactical Retreats 2 | . 2 Traps | -11 -10 ------- Run | Yrd Mat Traps Triggered 2 | . 2 Indirectly . | . . Trap Hack Attempts . | . . Triggered . | . . Disarmed . | . . Reprogrammed . | . . Reused . | . . Traps Extracted . | . . Installed . | . . Triggered . | . . Machines | -11 -10 ---------- Run | Yrd Mat Machines Disabled 7 | . 7 Max in Single Turn 7 | . 7 Machines Repaired . | . . Machines Dismantled . | . . Machines Sabotaged . | . . Overloaded Fab Kills . | . . Hacking | -11 -10 --------- Run | Yrd Mat Machines Accessed 4 | . 4 Terminals 3 | . 3 Fabricators . | . . Repair Stations . | . . Recycling Units 1 | . 1 Scanalyzers . | . . Garrison Access . | . . Total Hacks 9 | . 9 Successful 3 | . 3 Failed 6 | . 6 Catastrophic 1 | . 1 Database Lockouts . | . . Manual 2 | . 2 Terminals 8 | . 8 Fabricators . | . . Repair Stations . | . . Recycling Units 1 | . 1 Scanalyzers . | . . Garrison Access . | . . Terminal Hacks 2 | . 2 Alert Level 1 | . 1 Unreport Threat 1 | . 1 Fabricator Hacks . | . . Repair Station Hacks . | . . Recycling Unit Hacks 1 | . 1 Report Inventory 1 | . 1 Scanalyzer . | . . Garrison Access Hacks . | . . Unauthorized Hacks . | . . Terminals . | . . Fabricators . | . . Repair Stations . | . . Recycling Units . | . . Scanalyzers . | . . Garrison Access . | . . Data Cores Recovered . | . . Used . | . . Hacking Detections 3 | . 3 Full Trace Events 3 | . 3 Feedback Events . | . . Feedback Blocked . | . . Robot Schematics Acquired . | . . Robots Built . | . . Authchips . | . . Time . | . . Total Robot Build Rating . | . . Part Schematics Acquired . | . . Parts Built . | . . Authchips . | . . Time . | . . Total Part Build Rating . | . . Parts Repaired . | . . Time . | . . Parts Recycled . | . . Recycled Matter . | . . Retrieved Matter . | . . Retrieved Components . | . . Parts Scanalyzed . | . . Part Schematics Acquired . | . . Parts Damaged . | . . Bothacking | -11 -10 ------------ Run | Yrd Mat Used RIF Installer . | . . Robots Hacked . | . . Non-combat . | . . Combat . | . . Robot Hacks Applied . | . . Relay Couplers Released . | . . Fabnet Peak Effective % . | . . Robots Rewired . | . . Allies Hacked . | . . Hacks Repelled . | . . Allies | -11 -10 -------- Run | Yrd Mat Total Allies . | . . Largest Group . | . . Highest-Rated Group . | . . Highest-Rated Ally . | . . Total Orders . | . . Ally Attacks . | . . Total Damage . | . . Kills . | . . Allies Corrupted . | . . Allies Melted . | . . Intel | -11 -10 ------- Run | Yrd Mat Robot Analysis Total . | . . Derelict Logs Recovered . | . . Drone Launches . | . . Drone Recoveries . | . . Exploration | -11 -10 ------------- Run | Yrd Mat Turns Passed 2017 | 266 1751 Spaces Moved 778 | 173 605 Core 7 | 7 . Treads . | . . Legs 771 | 166 605 Wheels . | . . Hover . | . . Flight . | . . Fastest Speed 50 | 50 120 Average Speed 215 | 117 242 Slowest Speed 470 | 120 470 Overloaded Moves . | . . Propulsion Burnouts . | . . Robots Hopped . | . . Cave-ins Triggered . | . . Exploration Rate (%) 41 | 5 77 Regions Visited 1 Branch Regions . Pre-discovered Areas . | . . Known Exits Taken . | . . Unknown Exits Taken 1 | 1 . Scrap Searched . | . . Spaces Dug . | . . Terrain Destroyed 41 | . 41 Melee . | . . Projectile . | . . AOE 41 | . 41 Terrain Rammed . | . . Walls Destroyed . | . . Machines Disabled . | . . Actions | -11 -10 --------- Run | Yrd Mat Total 984 | 201 783 Wait 73 | . 73 Move 777 | 172 605 Hop . | . . Pick Up 18 | 5 13 Fast Attach 9 | 7 2 Attach 11 | . 11 Detach 2 | . 2 Swap 3 | . 3 Drop 3 | 1 2 Fire 86 | 16 70 Melee . | . . Ram . | . . Kick 2 | . 2 Crush . | . . Escape Stasis . | . . Rewire . | . . Trap . | . . Miscellaneous . | . . Route ------- -11/Scrapyard -10/Materials (discovered 3 exits: [*Mat x2] / [*Min]) History --------- Turn | Location | Event 4 | -11/Scrapyard | Discovered new exit (range 15) 267 | -11/Scrapyard | Entered Materials 306 | -10/Materials | Build established: Mutant 690 | -10/Materials | Discovered new exit (range 12) 1122 | -10/Materials | Discovered new exit (range 15) 1364 | -10/Materials | Discovered new exit (range 15) 1836 | -10/Materials | Lost 3 parts (1p1n1w) 1951 | -10/Materials | Core integrity fell below 50% 1983 | -10/Materials | Core integrity fell below 20% 2018 | -10/Materials | Destroyed by G-34 Mercenary with Small Laser Last Messages --------------- 01825_ U-05 Engineer builds a Wall. 01825_ Acquired Ion Engine. 01830_ U-05 Engineer lays Concrete. 01860_ W-16 Scout sends out distress signal. 01866_ Connecting with Terminal... 01874_ K-01 Serf collects debris. 01896_ Seismic Detector destroyed. 01909_ Aluminum Leg destroyed. 01957_ Kicked G-34 Mercenary. 01959_ Assault Rifle destroyed. 01961_ Kicked G-34 Mercenary. 01961_ Sml. Laser destroyed. 01965_ Integrated Corrupted Aluminum Leg (+1). 01973_ Lgt. Armor Plating destroyed. 01975_ Mining Laser destroyed. 01982_ G-34 Mercenary destroyed. 01984_ Ion Engine destroyed. 02003_ System corrupted: Sml. Laser rejected. 02004_ Aluminum Leg destroyed. 02012_ Acquired Sml. Laser. Map ----- +----------------------------------------------------+ | | | | | | | | | | | | | | | | | | | | | | | | | ????????????????????????????????????? | | ????????????????????????????????????? | | ????????????????????????????????????? | | ?????????????????######?????????????? | | ????????????????##!!!!##????????????? | | ????????????????#! !#????????????? | | ??????????###+### #????????????? | | ??????????# # ####?????????? | | ?????###### #?????????? | | ?????# #?????????? | | ?????# #### #??#####??? | | ?????# #??# % ####### #??# #??? | | ?????# ######g#####???# #??# < #??? | | ?????# ## @ #???# #??# #??? | | ?????# ## """ #???# #### #??? | | ?????# ##""""" % ##### #### | | ?????# ##""""" + [ ! # | | ?????# ##""""" ##### # " | | ?????# ## """ #???######## # " | | ?????# ## #??????????# # " | | ?????# ## #??????????# # " | | ?????# ############??????????# + " | | ?????# #???????#?????????????# # " | | ?????# #???????# ????????????# # " | | ?????# ######??# ????????????# # | | ?????# ##"""#??# ???????????# #### | | ?????#+##"T"#### ???????????# #??? | | ?????# ! # ??????????#[/ #??? | | ?????#! ####+##########%[!#### | | ?????# # =[! | | ?????# """ """ / *%= | | ?????# """ """ # %* != | | ?????# """ """ # ############+##### | | ?????# # #????????? ???? | | ?????# ! # #???????# ???# | | ?????########### #???????# ???# | | ???????????????# #???????# ???# | | ???????????????# +???????# ???# | +----------------------------------------------------+ Best States ------------- Heat Dissipation 25 Energy Generation 10 Energy Capacity 250 Matter Stores 300 Matter Capacity 300 Sight Range 16 Terrain Scan Density 10 Armor Coverage 150 Evasion (%) 55 Item Schematics ----------------- None Robot Schematics ------------------ None Fabricated ------------ Nothing Alien Tech Used ----------------- None Achievements -------------- None Challenges ------------ None Game ------ Seed PrecisionParticleField Manual? 0 Play Time 00:17:08 Cumulative 7.4 hours Start 2024.07.06 @ 22:31:00 End 2024.07.06 @ 22:45:35 Sessions 1 Manual Loads 0 Difficulty Rogue Special Mode None Game No. 9 Rogue 9 Adventurer 0 Explorer 0 Win Type - Total 0 Types 0/0/0/0/0/0/0/0/0 Lore% 14 Gallery% 10 Achievement% 11 Wizard Run 0 Options --------- Layout 0 ASCII 0 Keyboard 1 Movement Numpad Keybinds 0 Fullscreen 2 Font 24/Tamsyn Map View 183x50 Zoom Use 0% Tactical HUD 1 Map Filters NONE Filters NONE Steam 1 RUN: 2c5cf055-98ed-45b7-b7df-695f473fcd23